Cogmind - Beta 15 @@@ ROGUE MODE // 2025.06.25 @ 00:19:46 Player: Misery Result: Destroyed by B6-A59(R) with Subdweller Machine Gun Performance ------------- Evolutions (0) 0 Regions Visited (2) 400 Robots Destroyed (8) 40 Value Destroyed (298) 298 Prototype IDs (0) 0 Alien Tech Used (0) 0 Bonus (0) 0 TOTAL SCORE: 738 Bonus ------- None Cogmind --------- Core Integrity 0/250 Matter 258/300 Energy 43/250 System Corruption 0% Temperature Cool (0) Movement Rolling (110) Location -10/Subcaves Parts ------- > --- POWER (1) -------- Ion Engine > --- PROPULSION (2) --- Subdweller Monowheel Subdweller Monowheel > --- UTILITY (2) ------ Large Storage Unit Targeting Computer > --- WEAPON (2) ------- EM Pulse Gun Subdweller Laser > --- INVENTORY (15) --- Light Treads Light Treads Spiked Treads Aluminum Leg Aluminum Leg Myomer Leg Subdweller Monowheel Disposable Heat Sink Medium Storage Unit Scrap Shield Grenade Launcher Peak State ------------ > --- POWER ------------ Ion Engine > --- PROPULSION ------- Subdweller Monowheel Subdweller Monowheel > --- UTILITY ---------- Large Storage Unit Targeting Computer > --- WEAPON ----------- EM Pulse Gun Subdweller Laser > --- INVENTORY -------- Light Treads Light Treads Spiked Treads Aluminum Leg Aluminum Leg Myomer Leg Subdweller Monowheel Disposable Heat Sink Medium Storage Unit Scrap Shield Grenade Launcher [Rating: 12] Favorites ----------- Power Ion Engine Engine Ion Engine Propulsion Wheel Treads Light Treads Wheel Wheel Utility Small Storage Unit Device Improved Heat Sink Storage Small Storage Unit Processor Targeting Computer Protection Weapon Shielding Weapon EM Pulse Gun Energy Gun EM Pulse Gun Ballistic Gun Assault Rifle Build | -11 -10 -10 ------- Run | Yrd Mat Sub Slots Evolved . | . . . Power . | . . . Propulsion . | . . . Utility . | . . . Weapon . | . . . Parts Attached 21 | 4 11 6 Power 3 | 1 1 1 Engine 3 | 1 1 1 Core . | . . . Reactor . | . . . Propulsion 6 | 2 2 2 Treads 2 | . 2 . Leg . | . . . Wheel 4 | 2 . 2 Hover . | . . . Flight . | . . . Utility 7 | 1 4 2 Device 1 | . 1 . Storage 4 | 1 3 . Processor 1 | . . 1 Hackware . | . . . Protection 1 | . . 1 Artifact . | . . . Weapon 5 | . 4 1 Energy Gun 3 | . 2 1 Energy Cannon . | . . . Ballistic Gun 2 | . 2 . Ballistic Cannon . | . . . Launcher . | . . . Special Weapon . | . . . Impact Weapon . | . . . Slashing Weapon . | . . . Piercing Weapon . | . . . Special Melee Weapon . | . . . Unidentified Prototypes . | . . . Parts Lost 5 | . 2 3 Power 1 | . . 1 Propulsion . | . . . Utility 1 | . . 1 Weapon 3 | . 2 1 Highest Loss Streak 3 | . 2 3 To Critical Strikes . | . . . Average Backups 8 | 3 8 11 Power . | . 1 . Propulsion 4 | 2 4 5 Utility 2 | . 2 3 Weapon 1 | 1 1 1 Tool/Special . | . . . Unused Backups 9 | . . 9 Power . | . . . Propulsion 5 | . . 5 Utility 3 | . . 3 Weapon 1 | . . 1 Tool/Special . | . . . Average Slot Usage (%) 93 | . 91 99 Engine 14 | . 14 14 Treads 4 | . 6 . Wheel 24 | . 22 28 Device 6 | . 9 1 Storage 14 | . 14 14 Protection 3 | . . 11 Energy Gun 14 | . 13 15 Ballistic Gun 11 | . 10 12 Peak Build Rating 12 | 4 10 12 Average Rating 8 | 3 8 9 On Entrance 4 | . 4 10 Naked Turns . | . . . Heaviest Build 30 | 8 20 30 Greatest Support 40 | 26 40 40 Greatest Overweight (x) . | . . . Average Overweight (x) . | . . . Largest Inventory Capacity 20 | 8 20 15 Average Capacity 9 | 7 8 12 Most Carried 15 | 8 10 15 Average Carried 9 | 4 8 12 Final Capacity 15 | 8 10 15 Final Carried 12 | 8 10 12 Class Distribution -------------------- 100% | Mutant Dominant Class ---------------- Mutant | -10/Materials Mutant | -10/Subcaves Resources | -11 -10 -10 ----------- Run | Yrd Mat Sub Matter Collected 494 | 200 196 98 Remotely . | . . . Salvage Created 398 | . 235 163 Parts 26 | . 14 12 Haulers Intercepted . | . . . Recyclers Shooed . | . . . Parts Field Recycled . | . . . Retrieved Matter . | . . . Parts Self-Destructed 5 | . . 5 Prevented . | . . . Kills | -11 -10 -10 ------- Run | Yrd Mat Sub Combat Hostiles Destroyed 7 | . 4 3 Guns 7 | . 4 3 Classes Destroyed 3 | . 2 1 Watcher 1 | . 1 . Grunt 4 | . 4 . Subdweller 3 | . . 3 Best Kill Streak 2 | . 2 1 Combat Bots Only 2 | . 2 1 Max Kills in Single Turn 1 | . 1 1 Gunslinging . | . . . Exploded . | . . . Melee . | . . . Uniques/NPCs Destroyed . | . . . Combat | -11 -10 -10 -------- Run | Yrd Mat Sub Hostile Shots Fired 58 | . 27 31 Missed 10 | . 3 7 Hits 48 | . 24 24 Projectile 48 | . 24 24 Critical Strikes 3 | . 1 2 Actively Blocked 1 | . . 1 Damage Taken 836 | . 315 521 Core 256 | . 39 217 Absorbed by Shields . | . . . Redirected to Shielding 52 | . . 52 Core Remaining (%) 100 | 100 . . Volleys Fired 46 | . 26 20 Largest 2 | . 2 2 Hottest 100 | . 80 100 Shots Fired 83 | . 43 40 Gun 83 | . 43 40 Cannon . | . . . Launcher . | . . . Special . | . . . Kinetic 31 | . 16 15 Thermal 5 | . . 5 Explosive . | . . . Electromagnetic 47 | . 27 20 Robot Hit Streak 20 | . 12 20 Robot Miss Streak 4 | . 4 1 Penetration Max . | . . . Secondary Targets 1 | . 1 . Max Gunslinging Chain 1 | . 1 . Shots Hit Robots 67 | . 30 37 Core Hits 22 | . 13 9 Critical Kills . | . . . Critical Parts Destroyed . | . . . Critical Strikes . | . . . Melee Attacks . | . . . Impact . | . . . Slashing . | . . . Piercing . | . . . Sneak Attacks . | . . . Combat Hostiles . | . . . Follow-up Attacks . | . . . Damage Inflicted 695 | . 376 319 Guns 695 | . 376 319 Cannons . | . . . Explosions . | . . . Melee . | . . . Ramming . | . . . Kinetic 192 | . 91 101 Thermal 86 | . . 86 Explosive . | . . . Electromagnetic 417 | . 285 132 Impact . | . . . Slashing . | . . . Piercing . | . . . Highest Corruption . | . . . Average Corruption . | . . . Corruption Purged . | . . . Corruption Blocked . | . . . Overload Shots . | . . . Overflow Damage . | . . . Projectiles . | . . . Explosions . | . . . Melee . | . . . Knockbacks . | . . . Impact . | . . . Kinetic . | . . . Secondary . | . . . Self-Inflicted Damage . | . . . Shots . | . . . Rammed . | . . . Targets Rammed . | . . . Kicked . | . . . Crushed . | . . . Highest Temperature 112 | . 112 . Average Temperature 47 | . 47 . Received Heat Transfer 270 | . 198 72 Siege Activations . | . . . Martial Activations . | . . . Shielding Activations . | . . . Robots Disrupted . | . . . Combat Hostiles . | . . . Robots Corrupted . | . . . Combat Hostiles . | . . . Parts Fried 1 | . 1 . Impact Corruptions . | . . . Robots Melted . | . . . Combat Hostiles . | . . . Parts Melted 1 | . . 1 Heat Transferred 100 | . . 100 Parts Sabotaged . | . . . Parts Stolen . | . . . Parts Stripped . | . . . Power Chain Reactions . | . . . Alert | -11 -10 -10 ------- Run | Yrd Mat Sub Maximum Alert Level . | . . . Low Security (%) 100 | 100 100 . Level 1 . | . . . Level 2 . | . . . Level 3 . | . . . Level 4 . | . . . Level 5 . | . . . High Security . | . . . Max Security . | . . . Peak Influence 54 | . 54 . Initial . | . . . Average 13 | . 15 . Influence Increases 164 | . 164 . Destroy 0b10 Robot/C 80 | . 80 . Destroy 0b10 Robot/NC 5 | . 5 . Destroy Leader 22 | . 22 . Successful Hack 12 | . 12 . Partial Spotted 15 | . 15 . Lose Combat Pursuer 30 | . 30 . Influence Decreases 164 | . 142 22 Entered New Map 11 | . . 11 Time Decay 133 | . 122 11 Lost Part 20 | . 20 . Squads Dispatched . | . . . Investigation . | . . . Extermination . | . . . Reinforcement . | . . . Assault . | . . . Garrison . | . . . Intercept . | . . . Searches Triggered . | . . . Construction Impeded . | . . . Haulers Reinforced . | . . . Active Scanning Responses . | . . . Cargo Convoy Interrupts . | . . . Stealth | -11 -10 -10 --------- Run | Yrd Mat Sub Distress Signals 1 | . 1 . Communications Jammed . | . . . Distress Signals . | . . . Times Spotted 20 | . 10 10 Peak Tracking Total 6 | . 4 6 Tactical Retreats 1 | . 1 . Traps | -11 -10 -10 ------- Run | Yrd Mat Sub Traps Triggered . | . . . Indirectly . | . . . Trap Hack Attempts . | . . . Triggered . | . . . Disarmed . | . . . Reprogrammed . | . . . Reused . | . . . Traps Extracted . | . . . Installed . | . . . Triggered . | . . . Machines | -11 -10 -10 ---------- Run | Yrd Mat Sub Machines Disabled . | . . . Max in Single Turn . | . . . Machines Repaired . | . . . Machines Dismantled . | . . . Machines Sabotaged . | . . . Overloaded Fab Kills . | . . . Hacking | -11 -10 -10 --------- Run | Yrd Mat Sub Machines Accessed 3 | . 3 . Terminals 3 | . 3 . Fabricators . | . . . Repair Stations . | . . . Recycling Units . | . . . Scanalyzers . | . . . Garrison Access . | . . . Total Hacks 8 | . 8 . Successful 3 | . 3 . Failed 5 | . 5 . Catastrophic . | . . . Database Lockouts . | . . . Manual 3 | . 3 . Terminals 8 | . 8 . Fabricators . | . . . Repair Stations . | . . . Recycling Units . | . . . Scanalyzers . | . . . Garrison Access . | . . . Terminal Hacks 3 | . 3 . Record 1 | . 1 . Branch Access Points 1 | . 1 . Emergency Access Points 1 | . 1 . Fabricator Hacks . | . . . Repair Station Hacks . | . . . Recycling Unit Hacks . | . . . Scanalyzer . | . . . Garrison Access Hacks . | . . . Unauthorized Hacks . | . . . Terminals . | . . . Fabricators . | . . . Repair Stations . | . . . Recycling Units . | . . . Scanalyzers . | . . . Garrison Access . | . . . Data Cores Recovered . | . . . Used . | . . . Hacking Detections 2 | . 2 . Full Trace Events . | . . . Feedback Events . | . . . Feedback Blocked . | . . . Robot Schematics Acquired . | . . . Robots Built . | . . . Authchips . | . . . Time . | . . . Total Robot Build Rating . | . . . Part Schematics Acquired . | . . . Parts Built . | . . . Authchips . | . . . Time . | . . . Total Part Build Rating . | . . . Parts Repaired . | . . . Time . | . . . Parts Recycled . | . . . Recycled Matter . | . . . Retrieved Matter . | . . . Retrieved Components . | . . . Parts Scanalyzed . | . . . Part Schematics Acquired . | . . . Parts Damaged . | . . . Bothacking | -11 -10 -10 ------------ Run | Yrd Mat Sub Used RIF Installer . | . . . Robots Hacked . | . . . Non-combat . | . . . Combat . | . . . Robot Hacks Applied . | . . . Relay Couplers Released . | . . . Fabnet Peak Effective % . | . . . Robots Rewired . | . . . Allies Hacked . | . . . Hacks Repelled . | . . . Allies | -11 -10 -10 -------- Run | Yrd Mat Sub Total Allies . | . . . Largest Group . | . . . Highest-Rated Group . | . . . Highest-Rated Ally . | . . . Total Orders . | . . . Ally Attacks . | . . . Total Damage . | . . . Kills . | . . . Allies Corrupted . | . . . Allies Melted . | . . . Intel | -11 -10 -10 ------- Run | Yrd Mat Sub Active Infowar (turns) . | . . . Robot Analysis Total . | . . . Derelict Logs Recovered . | . . . Drone Launches . | . . . Drone Recoveries . | . . . Exploration | -11 -10 -10 ------------- Run | Yrd Mat Sub Turns Passed 673 | 64 413 196 Spaces Moved 486 | 58 320 108 Core 4 | 4 . . Treads 10 | . 10 . Legs . | . . . Wheels 472 | 54 310 108 Hover . | . . . Flight . | . . . Fastest Speed 50 | 50 90 90 Average Speed 93 | 87 92 99 Slowest Speed 160 | 100 160 110 Overloaded Moves . | . . . Propulsion Burnouts . | . . . Robots Hopped . | . . . Potential Cave-ins . | . . . Cave-ins Triggered . | . . . Exploration Rate (%) 20 | 4 50 6 Regions Visited 2 Branch Regions 1 Pre-discovered Areas . | . . . Known Exits Taken . | . . . Unknown Exits Taken 2 | 1 1 . Scrap Searched . | . . . Spaces Dug . | . . . Terrain Destroyed . | . . . Melee . | . . . Projectile . | . . . AOE . | . . . Terrain Rammed . | . . . Walls Destroyed . | . . . Machines Disabled . | . . . Actions | -11 -10 -10 --------- Run | Yrd Mat Sub Total 620 | 69 391 160 Wait 32 | . 20 12 Move 484 | 57 319 108 Hop . | . . . Pick Up 19 | 8 4 7 Fast Attach 8 | 4 3 1 Attach 7 | . 3 4 Detach 2 | . 1 1 Swap 15 | . 13 2 Drop 7 | . 2 5 Fire 46 | . 26 20 Melee . | . . . Ram . | . . . Kick . | . . . Crush . | . . . Escape Stasis . | . . . Rewire . | . . . Trap . | . . . Miscellaneous . | . . . Route ------- -11/Scrapyard -10/Materials (discovered 5 exits: [*Mat x2] / Min x2 / [*Sub]) -10/Subcaves History --------- Turn | Location | Event 9 | -11/Scrapyard | Discovered new exit (range 16) 65 | -11/Scrapyard | Entered Materials 106 | -10/Materials | Identified exit to Mines 122 | -10/Materials | Discovered new exit (range 10) 280 | -10/Materials | Discovered new exit (range 16) 312 | -10/Materials | Build established: Mutant 390 | -10/Materials | Discovered new exit (range 15) 478 | -10/Materials | Entered Subcaves 547 | -10/Subcaves | Ambushed by swarm of Subdwellers 649 | -10/Subcaves | Core integrity fell below 50% 667 | -10/Subcaves | Core integrity fell below 20% 674 | -10/Subcaves | Destroyed by B6-A59(R) with Subdweller Machine Gun Last Messages --------------- 00581_ Acquired Myomer Leg. 00582_ Acquired 31 matter. 00588_ NE-2A2(R) suffers critical hit (Burn). 00588_ NE-2A2(R) destroyed. 00588_ AV-CK9(R) destroyed. 00592_ Acquired 19 matter. 00594_ Acquired Spk. Treads. 00596_ Acquired Disposable Heat Sink. 00625_ 9S-MNG(R): "MADSUB!" 00631_ YG-DXV(g) suffers critical hit (Destroy). 00635_ YG-DXV(g) destroyed. 00640_ B6-A59(R) suffers critical hit (Burn). 00640_ UE-VJP(g) destroyed. 00644_ 54-GB4(g) destroyed. 00652_ Ion Engine destroyed. 00656_ Disposable Heat Sink melted. 00656_ 9S-MNG(R) destroyed. 00658_ Weapon Shielding destroyed. 00658_ Assault Rifle destroyed. 00673_ Destroyed Scrap Shield. Map ----- +----------------------------------------------------+ | ?????????????????????????????????????????????????? | | ?????????????????????????????????????????????????? | | ?????????????????????????????????????????????????? | | ?????????????????????????????????????????????????? | | ?????????????????????????????????????????????????? | | ?????????????????????????????????????????????????? | | ?????????????????????????????????????????????????? | | ?????????????????????????????????????????????????? | | ?????????????????????????????????????????????????? | | ?????????????????????????????????????????????????? | | ?????????????????????????? ??????????????????????? | | ?????????????????????????? ??????????????????????? | | ??????????????????? ?????# ??????????????????????? | | ???????????????????!???## ??????????????????????? | | ???????????????????%=?##% ??????????????????????? | | ??????????????????% %## ??????????????????????? | | ?????????????????? % ??????????????????????? | | ??????????????????? ??????????????????????? | | ??????????????????? #??????????????????????? | | ??????????????????? %% #??????????????????????? | | ???????????????????? ??????????????????????? | | ????????????????????? ??????????????????????? | | ?????????????????????? " ??????????????????????? | | ???????????????????????#R=##?????????????????????? | | ??????????????????????##%=%######????????????????? | | ??????????????????????#"!@!## # ###??????????????? | | ??????????????????????# [!%%! #??????????????? | | ??????????????????????# =* #??????????????? | | ??????????????????????### ## ## ##??????????????? | | ????????????????????????####### #??????????????? | | ??????????????????????????????# ##?????????????? | | ?????????????????????????????## #?????????????? | | ?????????????????????????????# ##?????????????? | | ?????????????????????????????# #??????????????? | | ?????????????????????????????## #??????????????? | | ??????????????????????????????# #??????????????? | | ???????????????????????????##?# #??????????????? | | ???????????????????????????#""# &#??????????????? | | ????????????????????????????#" %*#??????????????? | | ????????????????????????????####!%##?????????????? | | ???????????????????????????##??##=*##????????????? | | ???????????????????????????# ####&[*#####????????? | | ???????????????????????????#"" !#&&&&[& ###??????? | | ???????????????????????????#"" %|=#!&# # ##?????? | | ???????????????????????????##!##[%#### #?????? | | ????????????????????????????##?####??# # ####### | | ?????????????????????????????????????##### # # | | ?????????????????????????????????????????# | | ?????????????????????????????????????????## | | ??????????????????????????????????????????######## | +----------------------------------------------------+ Best States ------------- Heat Dissipation 39 Energy Generation 10 Energy Capacity 250 Matter Stores 300 Matter Capacity 300 Sight Range 16 Terrain Scan Density 10 Weapon Shielding 33 Evasion (%) 42 Targeting Accuracy 5 Recoil Reduction 2 Item Schematics ----------------- None Robot Schematics ------------------ None Fabricated ------------ Nothing Repaired ---------- Nothing Alien Tech Used ----------------- None Achievements -------------- None Challenges ------------ None Game ------ Seed PortableBurstTriangulator Manual? 0 Play Time 00:34:12 Cumulative 67.4 hours Start 2025.06.24 @ 23:11:28 End 2025.06.25 @ 00:19:46 Sessions 1 Manual Loads 0 Difficulty Rogue Special Mode None Game No. 56 Rogue 56 Adventurer 0 Explorer 0 Win Type - Total 2 Types 2/0/0/0/0/0/0/0/0/0 Lore% 20 Gallery% 38 Achievement% 40 Wizard Run 0 Options --------- Layout 1 ASCII 0 Keyboard 0 Movement Numpad Keybinds 0 Fullscreen 1 Font 24/Smallcaps Map View 50x35 Zoom Use 0% Tactical HUD 1 Map Filters NONE Filters NONE Steam 1 RUN: 1795eadc-02d6-4752-96ed-49f5de607a18